bitfinex-derivatives/quotes_SOLF0:USTF0_20260308
["timestamp","ask_amount","ask_price","bid_price","bid_amount"]
[1772932202504,3.65075845,83.119,83.081,3.64444271]
[1772932202896,3.65075845,83.119,83.085,10.832]
[1772932203403,3.65075845,83.119,83.081,3.64444271]
[1772932205804,3.65075845,83.119,83.082,3.62138821]
[1772932206895,3.65075845,83.119,83.084,14.45338821]
[1772932208406,3.65075845,83.119,83.085,3.6233657]
[1772932211305,3.65075845,83.119,83.076,10.833]
[1772932211506,3.65075845,83.119,83.077,3.62123704]
[1772932213011,3.65075845,83.119,83.076,10.833]
[1772932214612,3.65075845,83.119,83.076,14.46057984]
[1772932215211,3.65075845,83.119,83.077,3.67597024]
[1772932221220,3.67701234,83.109,83.068,3.6870173]
[1772932221617,3.67701234,83.099,83.068,3.6870173]
[1772932227517,3.67701234,83.099,83.059,10.836]
[1772932228424,3.67701234,83.099,83.059,14.53368128]
[1772932228625,3.67701234,83.099,83.06,3.69768128]
[1772932235734,3.67701234,83.099,83.059,10.836]
[1772932235939,3.83366518,83.089,83.051,3.72179298]
[1772932236231,236.61942334,83.125,83.021,3.72179298]
[1772932236232,3.47334783,83.07,83.021,3.72179298]
[1772932236427,3.83366518,83.059,83.011,3.72179298]
[1772932236633,3.83366518,83.049,83.011,3.72179298]
[1772932237932,3.83366518,83.049,83.013,10.842]
[1772932238124,3.83366518,83.049,83.011,3.72179298]
[1772932244129,3.83366518,83.049,83.014,3.85786565]
[1772932248540,3.83366518,83.049,83.01,3.47334783]
[1772932248741,3.83366518,83.049,83.005,10.843]
[1772932249630,3.83366518,83.049,83.006,3.86358664]
[1772932249833,3.83366518,83.049,83.005,10.843]
[1772932250341,3.83366518,83.049,83.001,3.86358664]
[1772932250542,3.83366518,83.045,83.0,3.47334783]
[1772932250743,3.83366518,83.045,82.991,3.86358664]
[1772932251042,3.83366518,83.045,82.994,3.86358664]
[1772932251243,3.83366518,83.043,82.994,3.86358664]
[1772932252240,3.83366518,83.04,82.994,3.86358664]
[1772932253043,3.83366518,83.038,82.994,3.86358664]
[1772932255247,3.83366518,83.034,82.994,3.86358664]
[1772932260151,3.83366518,83.034,82.99,3.47334783]
[1772932263355,3.9192359,83.03,82.987,3.8229495]
[1772932264856,11.85003972,83.046,82.991,3.8229495]
[1772932264857,3.9192359,83.028,82.991,3.8229495]
[1772932265859,3.9192359,83.028,82.992,3.8229495]
[1772932274668,11.85003972,83.046,82.983,3.74919708]
[1772932274669,3.9192359,83.015,82.983,3.74919708]
[1772932274873,3.9192359,83.015,82.973,3.74919708]
[1772932275070,3.9192359,83.015,82.953,3.74919708]
[1772932275270,3.9192359,83.009,82.953,3.74919708]
[1772932276875,3.9192359,82.989,82.953,3.74919708]
[1772932277477,3.9192359,82.987,82.953,3.74919708]
[1772932281769,293.48430606,83.014,82.98,3.48148853]
[1772932281976,297.40354196,83.014,82.98,3.48148853]
[1772932282276,3.9192359,83.013,82.98,3.48148853]
[1772932282476,3.9192359,83.013,82.971,3.73352445]
[1772932282873,3.9192359,83.012,82.971,3.73352445]
[1772932286176,10.842,83.013,82.971,3.73352445]
[1772932286177,3.9192359,83.01,82.971,3.73352445]
[1772932286677,3.9192359,83.01,82.96,3.48148853]
[1772932286868,293.48430606,83.014,82.96,3.48148853]
[1772932286869,3.9192359,83.001,82.96,7.126247]
[1772932287069,3.9192359,83.001,82.961,3.64475847]
[1772932288977,3.9192359,83.001,82.97,3.48148853]
[1772932292686,3.9192359,83.001,82.961,3.64475847]
[1772932294675,3.81717461,82.999,82.961,3.64475847]
[1772932295782,3.81717461,82.995,82.961,3.64475847]
[1772932311902,293.48430606,83.014,82.963,3.63317785]
[1772932311903,3.81717461,83.011,82.963,3.63317785]
[1772932312108,3.81717461,83.011,82.971,3.63317785]
[1772932315004,3.81717461,83.009,82.971,3.63317785]
[1772932316513,3.81717461,83.006,82.971,3.63317785]
[1772932322121,293.48430606,83.014,82.971,3.63317785]
[1772932322419,293.48430606,83.014,82.981,3.56270284]
[1772932322623,3.78823693,83.028,82.991,3.55664149]
[1772932322818,21.666,83.083,82.939,12.05]
[1772932322819,3.73854718,83.059,83.011,3.55664149]
[1772932323923,3.73854718,83.056,83.011,3.55664149]
[1772932325826,3.73854718,83.053,83.011,3.55664149]
[1772932326816,3.73854718,83.051,83.0,3.47911069]
[1772932327019,3.73854718,83.049,82.994,10.844]
[1772932327525,3.73854718,83.049,82.995,3.44004567]
[1772932327921,3.47911069,83.05,82.995,3.44004567]
[1772932327922,3.73854718,83.047,82.995,3.44004567]
[1772932328827,3.73854718,83.045,82.995,3.44004567]
[1772932329528,3.73854718,83.045,83.0,3.47911069]
[1772932329928,3.73854718,83.043,83.0,3.47911069]
[1772932332019,3.73854718,83.038,83.0,3.47911069]
[1772932332225,3.73854718,83.038,82.995,3.44004567]
[1772932332623,3.73854718,83.038,83.0,3.47911069]
[1772932332823,3.73854718,83.038,83.0,6.98789026]
[1772932336024,3.73854718,83.038,83.001,3.50538962]
[1772932340324,10.838,83.046,83.011,3.57344829]
[1772932340528,3.73854718,83.048,83.011,3.57344829]
[1772932341530,3.73854718,83.048,83.02,3.47911069]
[1772932341736,10.836,83.055,83.021,3.56937225]
[1772932342925,14.57454718,83.055,83.021,3.56937225]
[1772932343537,3.73854718,83.051,83.011,3.56784466]
[1772932356946,10.836,83.059,83.021,3.55269535]
[1772932357149,3.84155297,83.07,83.031,3.55348549]
[1772932357342,491.07360569,83.105,83.041,3.55348549]
[1772932357343,10.833,83.077,83.041,3.55348549]
[1772932359337,14.67455297,83.077,83.041,3.55348549]
[1772932360141,3.84155297,83.076,83.041,3.55348549]
[1772932363451,10.834,83.075,83.041,3.55348549]
[1772932363650,3.84155297,83.074,83.041,3.55348549]
[1772932377268,14.67455297,83.083,83.051,3.32661209]
[1772932377761,3.84155297,83.083,83.051,3.32661209]
[1772932379660,3.84155297,83.081,83.05,3.47911069]
[1772932379968,3.84155297,83.081,83.035,10.839]
[1772932379969,3.84155297,83.081,83.041,3.26759072]
[1772932380866,3.47911069,83.1,83.041,3.26759072]
[1772932380867,3.84155297,83.078,83.041,3.26759072]
[1772932381667,3.84155297,83.076,83.041,3.26759072]
[1772932390169,3.90351588,83.073,83.041,3.26759072]
[1772932424602,3.90351588,83.073,83.043,3.31998545]
[1772932432608,3.90351588,83.073,83.05,3.47679886]
[1772932433107,3.90351588,83.073,83.043,3.31998545]
[1772932441718,3.77240268,83.099,83.061,3.34578164]
[1772932441916,3.77240268,83.099,83.071,3.34578164]
[1772932444119,3.77240268,83.099,83.05,3.47679886]
[1772932444916,4.02094487,83.091,83.041,3.39297977]
[1772932445825,4.02094487,83.089,83.04,3.47679886]
[1772932446525,4.02094487,83.089,83.04,3.476813]
[1772932446824,4.02094487,83.083,83.04,3.476813]
[1772932450026,4.02094487,83.083,83.04,6.83516022]
[1772932450228,4.02094487,83.083,83.05,3.476813]
[1772932452031,4.02094487,83.083,83.041,3.35834722]
[1772932457926,4.02094487,83.078,83.041,3.35834722]
[1772932460826,4.02094487,83.076,83.041,3.35834722]
[1772932463738,4.02094487,83.076,83.031,3.37276712]
[1772932470144,4.02094487,83.076,83.041,3.36651277]
[1772932471338,4.02094487,83.074,83.041,3.36651277]
[1772932482051,3.476813,83.1,83.051,3.41183721]
[1772932482052,3.79552722,83.083,83.051,3.41183721]
[1772932482253,3.79552722,83.083,83.041,3.41183721]
[1772932482448,3.79552722,83.083,83.04,3.476813]
[1772932484552,3.79552722,83.083,83.04,6.92739997]
[1772932485053,3.79552722,83.083,83.045,3.45058697]
[1772932485250,3.79552722,83.092,83.051,3.45058697]
[1772932485752,3.79552722,83.089,83.051,3.45058697]
[1772932493157,3.79552722,83.097,83.061,3.4534174]
[1772932493660,3.79552722,83.097,83.051,3.45174926]
[1772932494860,3.79552722,83.092,83.051,3.45174926]
[1772932497266,3.79552722,83.092,83.04,3.476813]
[1772932497462,3.79552722,83.089,83.033,3.48863782]
[1772932498668,3.79552722,83.08,83.04,3.476813]
[1772932498964,3.79552722,83.08,83.04,6.96545082]
[1772932499159,3.79552722,83.08,83.041,3.48863782]
[1772932500872,10.833,83.078,83.041,3.48863782]
[1772932501068,3.79552722,83.077,83.041,3.48863782]
[1772932501273,3.79552722,83.086,83.041,3.48863782]
[1772932502570,3.8545077,83.116,83.061,3.48558573]
[1772932502769,3.8545077,83.116,83.081,3.48558573]
[1772932506778,3.8545077,83.134,83.091,3.47691655]
[1772932507182,3.8545077,83.134,83.1,6.95882307]
[1772932507380,3.8545077,83.134,83.1,3.48201007]
[1772932508081,3.8545077,83.134,83.09,3.48201007]
[1772932510972,3.47253705,83.13,83.08,3.53981536]
[1772932511175,3.8545077,83.129,83.081,3.53931575]
[1772932512483,3.8545077,83.129,83.091,3.53931575]
[1772932512785,3.8545077,83.129,83.093,3.53931575]
[1772932513285,3.8545077,83.129,83.082,3.53931575]
[1772932514987,3.8545077,83.129,83.092,10.831]
[1772932515382,3.8545077,83.129,83.092,14.41073971]
[1772932515578,3.8545077,83.129,83.092,10.831]
[1772932515776,3.8545077,83.129,83.093,3.57973971]
[1772932516187,3.8545077,83.14,83.096,3.57973971]
[1772932516581,3.8545077,83.14,83.101,3.57973971]
[1772932517777,3.8545077,83.139,83.101,3.57973971]
[1772932518581,3.8545077,83.137,83.086,3.6073173]
[1772932519388,10.827,83.129,83.086,3.6073173]
[1772932520188,3.8545077,83.137,83.08,3.47253705]
[1772932520189,3.8545077,83.136,83.09,3.59444869]
[1772932522184,3.8545077,83.136,83.092,3.59951954]
[1772932522991,3.8545077,83.136,83.096,3.59951954]
[1772932524981,3.8545077,83.134,83.096,3.59951954]
[1772932525181,3.8545077,83.134,83.081,3.60510419]
[1772932526085,3.8545077,83.134,83.033,12.06869556]
[1772932526086,3.8545077,83.134,83.095,10.831]
[1772932527490,3.8545077,83.134,83.091,3.60510419]
[1772932527690,3.47253705,83.14,83.091,3.60510419]
[1772932527691,3.8545077,83.129,83.091,3.60510419]
[1772932532086,12.19667636,83.17,83.091,3.60510419]
[1772932532087,3.8545077,83.127,83.091,3.60510419]
[1772932532292,3.8545077,83.127,83.08,3.60520962]
[1772932533496,4.0116403,83.119,83.07,14.42724327]
[1772932534197,4.0116403,83.119,83.071,3.59324327]
[1772932534598,4.0116403,83.117,83.075,14.42724327]
[1772932537099,3.47253705,83.11,83.064,3.5929282]
[1772932537294,4.0116403,83.109,83.064,3.5929282]
[1772932537792,4.0116403,83.109,83.07,7.06560305]
[1772932538593,4.0116403,83.109,83.07,3.47253705]
[1772932539798,4.0116403,83.109,83.068,10.834]
[1772932540098,4.0116403,83.109,83.067,3.59331254]
[1772932542201,4.0116403,83.1,83.06,3.47253705]
[1772932542401,4.0116403,83.1,83.057,3.58455177]
[1772932542604,4.0116403,83.098,83.052,10.837]
[1772932543803,4.0116403,83.094,83.052,14.42787696]
[1772932544101,4.0116403,83.094,83.055,3.59087696]
[1772932545607,4.0116403,83.094,83.009,37.52551105]
[1772932545608,4.0116403,83.112,83.071,3.58974321]
[1772932553499,4.0116403,83.112,83.072,10.834]
[1772932553700,4.0116403,83.112,83.073,3.59778554]
[1772932554810,4.0116403,83.11,83.073,3.59778554]
[1772932556104,4.0116403,83.103,83.061,3.60617524]
[1772932556305,4.0116403,83.108,83.06,3.47253705]
[1772932556611,4.0116403,83.108,83.056,3.60617524]
[1772932557914,4.0116403,83.107,83.061,10.835]
[1772932558412,4.0116403,83.107,83.062,3.60007392]
[1772932562715,4.0116403,83.107,83.065,3.60365598]
[1772932562913,3.47253705,83.12,83.065,3.60365598]
[1772932563114,3.82767306,83.129,83.091,3.60365598]
[1772932563413,9.52526622,83.166,83.09,3.47253705]
[1772932563414,3.82767306,83.149,83.101,3.62255076]
[1772932563813,14.65267306,83.142,83.101,3.62255076]
[1772932564005,3.82767306,83.141,83.101,3.62255076]
[1772932564915,3.82767306,83.139,83.101,3.62255076]
[1772932565916,10.825,83.138,83.101,3.62255076]
[1772932566415,14.65267306,83.138,83.101,3.62255076]
[1772932566914,3.82767306,83.137,83.101,3.62255076]
[1772932574622,3.82767306,83.142,83.101,3.62255076]
[1772932579726,3.82767306,83.144,83.111,3.59075238]
[1772932579926,10.825,83.146,83.111,3.59075238]
[1772932581934,3.82767306,83.152,83.111,3.59075238]
[1772932582933,3.82767306,83.152,83.119,3.59999064]
[1772932595848,4.0238495,83.179,83.131,3.62621355]
[1772932596045,3.47179287,83.2,83.141,3.62621355]
[1772932596245,4.0238495,83.196,83.14,3.47179287]
[1772932596441,4.0238495,83.196,83.138,3.62621355]
[1772932596442,4.0238495,83.179,83.138,3.62621355]
[1772932600247,4.0238495,83.177,83.132,10.826]
[1772932600553,4.0238495,83.169,83.118,3.54222929]
[1772932601245,4.0238495,83.169,83.12,3.53070634]
[1772932601452,4.0238495,83.169,83.121,3.53070634]
[1772932602946,4.0238495,83.169,83.128,3.53070634]
[1772932605557,4.0238495,83.169,83.131,3.5609615]
[1772932605851,12.29255777,83.214,83.1,62.0]
[1772932605852,4.0238495,83.191,83.141,3.5609615]
[1772932606051,4.0238495,83.189,83.131,3.5609615]
[1772932606251,4.0238495,83.179,83.131,3.5609615]
[1772932607853,4.0238495,83.179,83.134,10.826]
[1772932609156,4.0238495,83.179,83.134,14.34695821]
[1772932609854,4.0238495,83.177,83.134,3.52095821]
[1772932610051,4.0238495,83.177,83.123,3.5211359]
[1772932610753,3.47179287,83.18,83.123,3.5211359]
[1772932610754,4.0238495,83.172,83.123,3.5211359]
[1772932611758,4.0238495,83.169,83.123,3.5211359]
[1772932613459,4.0238495,83.169,83.126,3.53507589]
[1772932614657,4.0238495,83.169,83.13,3.47179287]
[1772932620560,4.0238495,83.164,83.114,3.42454616]
[1772932620966,4.0238495,83.159,83.104,3.42454616]
[1772932621362,4.0238495,83.154,83.113,10.829]
[1772932621862,4.0238495,83.154,83.104,3.42454616]
[1772932622454,3.84236496,83.152,83.105,10.83]
[1772932623064,3.84236496,83.133,83.086,3.41757188]
[1772932623257,3.84236496,83.133,83.091,3.41757188]
[1772932624858,3.84236496,83.133,83.094,3.42156843]
[1772932625873,3.84236496,83.133,83.1,3.47179287]
[1772932626867,3.84236496,83.133,83.094,3.42156843]
[1772932627871,3.84236496,83.133,83.1,3.47179287]
[1772932630474,3.84236496,83.133,83.1,3.47195592]
[1772932635277,3.84236496,83.131,83.077,3.43738577]
[1772932635477,3.84236496,83.131,83.101,3.43738577]
[1772932641084,3.84236496,83.13,83.08,3.15636623]
[1772932641378,3.84236496,83.13,83.08,6.62832215]
[1772932641777,3.84236496,83.13,83.08,3.15636623]
[1772932642883,3.84236496,83.126,83.08,3.15636623]
[1772932643784,3.84236496,83.126,83.08,6.62832215]
[1772932644882,3.84236496,83.124,83.08,6.62832215]
[1772932649585,3.84236496,83.124,83.081,10.833]
[1772932649887,3.84236496,83.124,83.081,14.00302709]
[1772932650488,3.84236496,83.124,83.082,3.17002709]
[1772932653889,3.84236496,83.124,83.084,3.17202022]
[1772932654789,3.84236496,83.124,83.086,14.00402022]
[1772932655789,3.65901949,83.12,83.07,3.17243952]
[1772932655994,3.65901949,83.12,83.081,3.17243952]
[1772932657487,3.65901949,83.12,83.091,3.09717363]
[1772932657688,3.65901949,83.136,83.091,3.09717363]
[1772932658988,3.65901949,83.136,83.101,3.09717363]
[1772932669798,3.65901949,83.136,83.09,3.47195592]
[1772932670106,3.65901949,83.136,83.09,6.59269953]
[1772932670307,3.65901949,83.136,83.091,3.10421293]
[1772932670803,3.65901949,83.134,83.091,3.10421293]
[1772932672709,3.65901949,83.134,83.092,3.07976563]
[1772932678314,3.65901949,83.134,83.096,3.07203939]
[1772932679815,3.65901949,83.134,83.098,3.05263347]
[1772932680611,3.65901949,83.134,83.09,3.47195592]
[1772932680816,3.65901949,83.109,83.06,3.47195592]
[1772932681015,3.65901949,83.099,83.05,3.47195592]
[1772932681214,3.65901949,83.097,83.049,10.837]
[1772932681516,3.65901949,83.097,83.05,3.0579122]
[1772932681814,3.65901949,83.097,83.051,3.05722903]
[1772932682311,11.2130406,83.143,83.011,21.684]
[1772932682312,3.86396329,83.108,83.061,3.04412694]
[1772932683810,3.86396329,83.108,83.065,3.04413361]
[1772932688420,3.86396329,83.108,83.07,10.834]
[1772932688725,3.86396329,83.116,83.071,3.11868849]
[1772932689527,3.86396329,83.116,83.08,3.47195592]
[1772932691028,3.86396329,83.116,83.075,13.95155232]
[1772932691830,3.86396329,83.116,83.076,3.11755232]
[1772932697128,3.86396329,83.116,83.08,3.47405163]
[1772932698631,3.86396329,83.116,83.08,6.63942963]
[1772932702737,3.86396329,83.116,83.08,3.165378]
[1772932715748,3.99709681,83.109,83.058,3.03077717]
[1772932716047,3.99709681,83.089,83.04,3.03077717]
[1772932716441,3.99709681,83.081,83.04,3.03077717]
[1772932717840,3.47405163,83.09,83.04,3.03077717]
[1772932717841,3.99709681,83.077,83.04,3.03077717]
[1772932720346,3.99709681,83.075,83.03,3.47405163]
[1772932720550,3.99709681,83.075,83.023,10.84]
[1772932720849,3.99709681,83.075,83.024,3.16064553]
[1772932721848,3.99709681,83.072,83.027,3.16064553]
[1772932722251,3.99709681,83.069,83.027,3.16064553]
[1772932723746,3.99709681,83.067,83.027,3.16064553]
[1772932724551,3.99709681,83.063,83.027,3.16064553]
[1772932733257,3.99709681,83.063,83.031,3.16349638]
[1772932734660,14.83109681,83.073,83.031,3.16349638]
[1772932734861,3.99709681,83.072,83.031,3.16349638]
[1772932744061,3.73765063,83.069,83.031,3.16349638]
[1772932745866,3.73765063,83.067,83.031,3.16349638]
[1772932748670,3.73765063,83.067,83.032,3.05488864]
[1772932757278,3.73765063,83.067,83.033,3.10891806]
[1772932757577,3.73765063,83.067,83.03,3.47766485]
[1772932758873,3.91291402,83.065,83.03,3.47766485]
[1772932764394,3.91291402,83.058,83.03,3.47766485]
[1772932766995,3.91291402,83.067,83.031,3.11360708]
[1772932767195,3.91291402,83.067,83.04,3.47766485]
[1772932767500,3.91291402,83.067,83.031,3.11360708]
[1772932772898,3.91291402,83.067,83.033,3.11444195]
[1772932775899,3.93965503,83.066,83.03,3.47766485]
[1772932782602,3.93965503,83.066,83.03,6.59477017]
[1772932782801,3.93965503,83.066,83.031,3.11710532]
[1772932796619,3.93965503,83.066,83.03,3.47766485]
[1772932797812,3.93965503,83.066,83.024,3.05595765]
[1772932816331,3.93965503,83.066,83.026,3.10890967]
[1772932816635,3.82495153,83.109,83.061,3.10890967]
[1772932816937,10.831,83.099,83.061,3.10890967]
[1772932817235,14.65595153,83.099,83.061,3.10890967]
[1772932817433,3.82495153,83.098,83.061,3.10890967]
[1772932820840,3.82495153,83.098,83.062,3.09960221]
[1772932821040,3.82495153,83.098,83.07,3.47824351]
[1772932822839,3.82495153,83.098,83.062,3.09960221]
[1772932824147,3.82495153,83.096,83.051,3.1180852]
[1772932824750,10.831,83.095,83.051,3.1180852]
[1772932824948,3.82495153,83.094,83.051,3.1180852]
[1772932827951,3.82495153,83.094,83.061,3.12269329]
[1772932854362,3.66339284,83.112,83.071,3.11831576]
[1772932854557,3.66339284,83.112,83.081,3.11831576]
[1772932854961,3.66339284,83.139,83.081,3.11831576]
[1772932855858,3.66339284,83.12,83.081,3.11831576]
[1772932856753,3.66339284,83.116,83.081,3.11831576]
[1772932877174,3.68516274,83.114,83.081,3.11831576]
[1772932877577,3.68516274,83.114,83.071,3.04095692]
[1772932878876,14.51516274,83.106,83.071,3.04095692]
[1772932879079,3.68516274,83.105,83.071,3.04095692]
[1772932883078,10.829,83.113,83.071,3.04095692]
[1772932883377,14.51416274,83.113,83.071,3.04095692]
[1772932885178,3.68516274,83.112,83.071,3.04095692]
[1772932892176,3.68516274,83.112,83.076,3.04418392]
[1772932896486,3.95916999,83.107,83.076,3.04418392]
[1772932897783,10.83,83.106,83.076,3.04418392]
[1772932897985,296.49044976,83.126,83.081,3.04680261]
[1772932898187,3.95916999,83.125,83.081,3.04680261]
[1772932898887,10.829,83.114,83.081,3.04680261]
[1772932908394,14.78816999,83.114,83.081,3.04680261]
[1772932911597,3.95916999,83.114,83.083,3.04096486]
[1772932911799,3.95916999,83.125,83.09,3.47360831]
[1772932912594,3.95916999,83.125,83.083,3.04096486]
[1772932912795,3.95916999,83.125,83.086,3.04143377]
[1772932919396,3.95916999,83.123,83.077,13.87443882]
[1772932920904,3.95916999,83.123,83.078,3.04165944]
[1772932921606,4.00299226,83.113,83.061,3.04305625]
[1772932922306,4.00299226,83.113,83.07,3.47360831]
[1772932929616,3.92076129,83.109,83.051,29.94626587]
[1772932929806,3.92076129,83.099,83.05,3.06264554]
[1772932930807,3.92076129,83.096,83.05,3.06264554]
[1772932931609,3.92076129,83.096,83.05,6.53625385]
[1772932936517,3.92076129,83.096,83.05,6.53830595]
[1772932937417,3.92076129,83.094,83.051,3.07395429]
[1772932940025,3.92076129,83.091,83.051,3.07395429]
[1772932966433,3.66997582,83.088,83.044,10.838]
[1772932966732,3.66997582,83.088,83.044,13.93195958]
[1772932966930,3.66997582,83.088,83.045,3.09395958]
[1772932968934,3.66997582,83.088,83.032,29.94626587]
[1772932968935,3.66997582,83.086,83.038,3.09304922]
[1772932969731,3.66997582,83.084,83.038,3.09304922]
[1772932970237,3.66997582,83.084,83.03,3.47566041]
[1772932970238,3.66997582,83.084,83.04,3.09304922]
[1772932975140,3.66997582,83.1,83.051,3.09716778]
[1772932975442,3.66997582,83.099,83.051,3.09716778]
[1772932975943,3.66997582,83.091,83.042,3.09716778]
[1772932976146,3.66997582,83.089,83.042,3.09716778]
[1772932976639,296.49044976,83.126,83.015,37.31283067]
[1772932976640,3.66997582,83.079,83.033,3.12586373]
[1772932977842,3.66997582,83.076,83.033,3.12586373]
[1772932978541,3.66997582,83.069,83.033,3.12586373]
[1772932978747,3.66997582,83.069,83.024,3.13658754]
[1772932979746,14.50397582,83.069,83.024,3.13658754]
[1772932979946,3.66997582,83.068,83.024,3.13658754]
[1772932980249,3.66997582,83.068,83.02,10.841]
[1772932980449,3.66997582,83.066,83.015,3.13658754]
[1772932980842,3.66997582,83.066,83.017,3.04642666]
[1772932981941,3.66997582,83.066,83.021,3.00791622]
[1772932983447,3.66997582,83.066,83.023,2.98242481]
[1772932985449,3.66997582,83.066,83.027,2.98242481]
[1772932987953,3.66997582,83.066,83.031,2.9671963]
[1772933000162,10.834,83.07,83.041,2.96135112]
[1772933006261,3.79982818,83.069,83.041,2.96135112]
[1772933006465,3.79982818,83.067,83.041,2.96135112]
[1772933006760,3.79982818,83.067,83.031,2.95657543]
[1772933029580,3.79982818,83.067,83.033,2.93733158]
[1772933036880,3.68426815,83.076,83.041,2.93443591]
[1772933044593,297.67356992,83.087,83.051,2.92322401]
[1772933044800,297.67356992,83.087,83.06,3.47790326]
[1772933048003,297.67356992,83.087,83.059,2.92322401]
[1772933050206,293.63221738,83.087,83.062,2.97864017]
[1772933052504,293.63221738,83.087,83.064,2.97245671]
[1772933055805,4.04135254,83.096,83.064,2.97245671]
[1772933056900,4.04135254,83.096,83.07,3.47790326]
[1772933057213,4.04135254,83.108,83.071,2.96460815]
[1772933058312,4.04135254,83.108,83.08,3.47790326]
[1772933058506,294.41634994,83.115,83.081,2.95774037]
[1772933058704,294.41634994,83.115,83.091,2.95774037]
[1772933059212,4.04135254,83.118,83.091,2.95774037]
[1772933059911,4.04135254,83.118,83.081,2.9657036]
[1772933060109,4.04135254,83.118,83.08,3.47790326]
[1772933060416,4.04135254,83.118,83.08,6.44360686]
[1772933060615,4.04135254,83.118,83.08,6.43884623]
[1772933061110,4.04135254,83.118,83.081,2.9657036]
[1772933063516,4.04135254,83.118,83.09,3.47314263]
[1772933067918,4.04135254,83.118,83.087,10.832]
[1772933068316,4.04135254,83.118,83.07,3.47314263]
[1772933068516,4.04135254,83.118,83.071,2.94566181]
[1772933069821,4.04135254,83.118,83.078,10.833]
[1772933070921,4.04135254,83.118,83.08,3.47314263]
[1772933071922,4.04135254,83.118,83.085,2.92885782]
[1772933072122,4.04135254,83.118,83.09,6.40200045]
[1772933074223,4.04135254,83.118,83.09,2.92885782]
[1772933079627,4.04135254,83.118,83.081,2.93787724]
[1772933080829,4.04135254,83.118,83.082,13.77147258]
[1772933081831,4.04135254,83.118,83.083,2.93890362]
[1772933085332,3.68395855,83.116,83.072,2.94025876]
[1772933086832,3.68395855,83.114,83.074,10.834]
[1772933088425,3.68395855,83.102,83.061,2.94003024]
[1772933089833,3.68395855,83.102,83.064,10.835]
[1772933090133,3.68395855,83.119,83.081,2.91997353]
[1772933091131,3.68395855,83.117,83.068,2.92183528]
[1772933091337,3.68395855,83.117,83.061,2.92183528]
[1772933091937,3.68395855,83.117,83.07,3.47314263]
[1772933092333,3.68395855,83.117,83.07,6.39497791]
[1772933092727,10.829,83.109,83.07,6.39497791]
[1772933093036,3.68395855,83.108,83.07,6.39497791]
[1772933094940,3.68395855,83.108,83.071,2.96911821]
[1772933098642,3.68395855,83.104,83.071,2.96911821]
[1772933098839,3.68395855,83.104,83.07,3.47314263]
[1772933098840,3.68395855,83.104,83.051,29.94626587]
[1772933099143,298.09520917,83.131,82.856,506.924]
[1772933099144,3.68395855,83.099,83.042,2.97385872]
[1772933099342,3.68395855,83.099,83.05,3.47314263]
[1772933100940,3.68395855,83.095,83.061,2.97420837]
[1772933102247,3.74608911,83.119,83.061,2.97420837]
[1772933103846,3.75907451,83.109,83.062,2.99059992]
[1772933105746,3.75907451,83.109,83.065,2.9957092]
[1772933106543,3.75907451,83.107,83.065,2.9957092]
[1772933109048,3.75907451,83.107,83.071,3.00135501]
[1772933116655,3.75907451,83.125,83.073,2.96972333]
[1772933117452,3.75907451,83.116,83.076,13.80272333]
[1772933117648,3.75907451,83.116,83.077,2.96972333]
[1772933131668,3.75907451,83.116,83.081,3.06368108]
[1772933144080,3.672221,83.114,83.081,3.06368108]
[1772933149084,3.672221,83.114,83.076,10.833]
[1772933151881,3.672221,83.114,83.077,3.02006432]
[1772933155789,3.672221,83.114,83.081,10.833]
[1772933156393,3.672221,83.114,83.077,3.02006432]
[1772933158688,3.672221,83.114,83.078,10.833]
[1772933158894,3.672221,83.114,83.079,3.01211469]
[1772933160194,3.672221,83.11,83.079,3.01211469]
[1772933160393,3.672221,83.11,83.071,3.01211469]
[1772933160992,3.672221,83.11,83.063,29.94626587]
[1772933161189,3.672221,83.11,83.064,3.01298356]
[1772933161792,3.672221,83.11,83.072,10.834]
[1772933166600,3.672221,83.11,83.072,13.85869006]
[1772933166800,3.672221,83.11,83.073,3.02469006]
[1772933176002,3.672221,83.11,83.075,3.05170558]
[1772933201922,3.95594449,83.119,83.087,3.16037563]
[1772933202926,3.95594449,83.119,83.089,3.15883327]
[1772933210032,3.95594449,83.119,83.08,10.833]
[1772933212836,3.95594449,83.116,83.071,10.834]
[1772933213839,3.95594449,83.112,83.071,10.834]
[1772933214540,3.95594449,83.099,83.05,3.14781708]
[1772933215642,3.95594449,83.099,83.05,6.62182185]
[1772933215937,3.95594449,83.099,83.056,3.147778]
[1772933216841,3.95594449,83.099,83.061,3.15509145]
[1772933219144,3.95594449,83.096,83.053,3.1549882]
[1772933220545,3.95594449,83.105,83.055,3.1549882]
[1772933221047,3.95594449,83.089,83.041,3.15567063]
[1772933221547,3.95594449,83.089,83.045,10.838]
[1772933222745,4.03998226,83.087,83.045,10.838]
[1772933224447,4.03998226,83.087,83.046,3.15460699]
[1772933225146,4.03998226,83.087,83.05,3.19400628]
[1772933225547,3.43830479,83.087,83.05,3.19400628]
[1772933226945,3.43830479,83.087,83.052,3.79881903]